Cogmind - Beta 11 *** ADVENTURER MODE // 2023.02.06 @ 18:54:58 Player: ZarZap Result: Destroyed by P-60 Hacker via exploding Nuclear Reactor Performance ------------- Evolutions (4) 2000 Regions Visited (7) 1400 Robots Destroyed (41) 205 Value Destroyed (1059) 1059 Prototype IDs (3) 60 Alien Tech Used (0) 0 Bonus (25) 25 TOTAL SCORE: 4749 Bonus ------- Follower Combat Kills 25 Cogmind --------- Core Integrity 0/850 Matter 248/300 Energy 66/100 System Corruption 4% Temperature Cool (0) Movement Walking (820) Ox10 Location -6/Factory Parts ------- > --- POWER (3) -------- (None) > --- PROPULSION (3) --- Aluminum Leg Aluminum Leg Compact Wheel > --- UTILITY (4) ------ Humpback Weapon Cycler Hardlight Generator > --- WEAPON (5) ------- (None) > --- INVENTORY (35) --- (None) Peak State ------------ > --- POWER ------------ Improved Ion Engine Deuterium Engine Micro Nuclear Core > --- PROPULSION ------- Wheel Compact Wheel Compact Wheel > --- UTILITY ---------- High-capacity Storage Unit Targeting Computer Weapon Cycler Improved Propulsion Shielding > --- WEAPON ----------- Precision Shock Rifle Precision Shock Rifle Field Laser Heavy Ion Cannon Gauss Cannon > --- INVENTORY -------- Aluminum Leg Aluminum Leg Wheel Compact Wheel Humpback Seismic Detector Hardlight Generator Dynamic Insulation System Assault Rifle Assault Rifle Antimatter Cannon Proton Missile Launcher [Rating: 44] Favorites ----------- Power Ion Engine Engine Ion Engine Power Core Micro Nuclear Core Propulsion Wheel Leg Aluminum Leg Wheel Wheel Utility Targeting Computer Device Weapon Cycler Storage High-capacity Storage Unit Processor Targeting Computer Protection Improved Propulsion Shielding Weapon Light Assault Rifle Energy Gun Field Laser Energy Cannon Heavy Ion Cannon Ballistic Gun Light Assault Rifle Ballistic Cannon Gauss Cannon Launcher Proton Missile Launcher Build | -11 -10 -10 -10 -9 -8 -7 -6 ------- Run | Scr Mat Min Exi Min Mat Fac Fac Slots Evolved 8 | . . . . . 4 2 2 Power 2 | . . . . . 1 . 1 Propulsion 1 | . . . . . 1 . . Utility 2 | . . . . . 1 1 . Weapon 3 | . . . . . 1 1 1 Parts Attached 46 | 5 4 1 2 2 6 10 16 Power 9 | 1 . . . 1 1 4 2 Engine 7 | 1 . . . 1 . 3 2 Core 2 | . . . . . 1 1 . Reactor . | . . . . . . . . Propulsion 12 | 2 2 . . 1 1 . 6 Treads . | . . . . . . . . Leg 2 | . . . . . . . 2 Wheel 10 | 2 2 . . 1 1 . 4 Hover . | . . . . . . . . Flight . | . . . . . . . . Utility 10 | . 2 1 1 . 1 3 2 Device 4 | . . . . . 1 2 1 Storage 4 | . 1 1 1 . . . 1 Processor 1 | . 1 . . . . . . Hackware . | . . . . . . . . Protection 1 | . . . . . . 1 . Artifact . | . . . . . . . . Weapon 15 | 2 . . 1 . 3 3 6 Energy Gun 3 | . . . . . 1 1 1 Energy Cannon 2 | . . . . . . 1 1 Ballistic Gun 8 | 2 . . 1 . 2 1 2 Ballistic Cannon 1 | . . . . . . . 1 Launcher 1 | . . . . . . . 1 Special Weapon . | . . . . . . . . Impact Weapon . | . . . . . . . . Slashing Weapon . | . . . . . . . . Piercing Weapon . | . . . . . . . . Special Melee Weapon . | . . . . . . . . Unidentified Prototypes 3 | . . . . . . 2 1 Parts Lost 23 | . 1 . . . 2 . 20 Power 5 | . . . . . 1 . 4 Propulsion 5 | . 1 . . . . . 4 Utility 3 | . . . . . . . 3 Weapon 10 | . . . . . 1 . 9 Highest Loss Streak 9 | . 1 . . . 1 . 9 To Critical Strikes . | . . . . . . . . Average Slot Usage (%) 96 | . 90 100 100 100 93 98 84 Engine 13 | . 14 14 14 14 9 14 8 Core 1 | . . . . . 5 . 4 Wheel 25 | . 25 28 28 28 27 23 15 Device 2 | . . . . . 8 7 6 Storage 11 | . 11 14 14 14 9 7 5 Processor 10 | . 9 14 14 14 9 7 5 Protection 1 | . . . . . . 5 4 Energy Gun 3 | . . . . . 5 9 12 Energy Cannon 1 | . . . . . . 4 5 Ballistic Gun 21 | . 28 28 28 28 19 15 3 Naked Turns . | . . . . . . . . Heaviest Build 206 | 8 13 28 49 49 57 73 206 Greatest Support 42 | 26 26 26 26 26 36 36 42 Greatest Overweight (x) 10 | . 1 1 1 1 1 2 10 Average Overweight (x) 1 | . . . 1 1 1 1 2 Largest Inventory Capacity 35 | 5 8 15 20 20 20 20 35 Average Capacity 18 | 5 7 14 19 20 20 20 20 Most Carried 14 | 5 8 8 9 11 8 13 14 Average Carried 8 | 3 5 7 7 10 6 8 10 Final Capacity 35 | 5 8 15 20 20 20 20 35 Final Carried 12 | 5 7 7 9 9 7 12 . Class Distribution -------------------- 68% | Mutant 31% | Gunner Dominant Class ---------------- Mutant | -10/Materials Mutant | -10/Mines Mutant | -10/Exiles Mutant | -9/Mines Gunner | -8/Materials Gunner | -7/Factory Gunner | -6/Factory Resources | -11 -10 -10 -10 -9 -8 -7 -6 ----------- Run | Scr Mat Min Exi Min Mat Fac Fac Matter Collected 987 | 250 115 20 . 100 96 46 360 Remotely . | . . . . . . . . Salvage Created 1696 | . 324 . . 220 140 156 856 Parts 87 | . 17 . . 19 5 16 30 Haulers Intercepted . | . . . . . . . . Recyclers Shooed 2 | . 2 . . . . . . Parts Field Recycled . | . . . . . . . . Retrieved Matter . | . . . . . . . . Parts Self-Destructed . | . . . . . . . . Prevented . | . . . . . . . . Kills | -11 -10 -10 -10 -9 -8 -7 -6 ------- Run | Scr Mat Min Exi Min Mat Fac Fac Combat Hostiles Destroyed 28 | . 4 . . 8 3 5 8 Guns 21 | . 4 . . 8 3 4 2 Cannons 6 | . . . . . . 1 5 AOE 1 | . . . . . . . 1 Classes Destroyed 11 | . 4 . . . 2 . 5 Worker 1 | . . . . . . . 1 Builder 3 | . . . . . . . 3 Recycler 6 | . 2 . . 1 . . 3 Operator 2 | . . . . . . . 2 Watcher 1 | . 1 . . . . . . Swarmer 14 | . 1 . . 7 . 4 2 Grunt 7 | . 3 . . 1 1 . 2 Brawler 1 | . . . . . . . 1 Duelist 2 | . . . . . 1 . 1 Sentry 3 | . . . . . 1 1 1 Programmer 1 | . . . . . . . 1 Best Kill Streak 5 | . 3 . . 4 1 4 5 Combat Bots Only 4 | . 2 . . 4 1 4 3 Max Kills in Single Turn 2 | . 1 . . 2 1 2 2 Gunslinging 1 | . . . . 1 . 1 . Exploded 1 | . . . . . . . 1 Melee . | . . . . . . . . Uniques/NPCs Destroyed . | . . . . . . . . Combat | -11 -10 -10 -10 -9 -8 -7 -6 -------- Run | Scr Mat Min Exi Min Mat Fac Fac Damage Taken 2809 | . 219 3 . 238 242 183 1924 Core 1025 | . 48 . . 71 26 30 850 Absorbed by Shields . | . . . . . . . . Redirected to Shielding 102 | . . . . . . 19 83 Core Remaining (%) 85 | 100 . . . 52 95 95 . Volleys Fired 81 | . 25 . . 16 11 7 22 Largest 5 | . 2 . . 2 3 4 5 Hottest 286 | . 40 . . 43 106 168 286 Shots Fired 234 | . 50 . . 32 29 28 95 Gun 190 | . 50 . . 32 29 25 54 Cannon 43 | . . . . . . 3 40 Launcher 1 | . . . . . . . 1 Special . | . . . . . . . . Kinetic 145 | . 50 . . 32 20 18 25 Thermal 59 | . . . . . 9 10 40 Explosive . | . . . . . . . . Electromagnetic 30 | . . . . . . . 30 Robot Hit Streak 32 | . 15 . . 16 9 11 32 Robot Miss Streak 3 | . 3 . . 2 1 3 1 Penetration Max . | . . . . . . . . Secondary Targets 5 | . 1 . . 2 . 2 . Max Gunslinging Chain 1 | . 1 . . 1 . 1 . Shots Hit Robots 187 | . 37 . . 31 23 22 74 Core Hits 77 | . 14 . . 12 8 12 31 Critical Kills . | . . . . . . . . Critical Parts Destroyed . | . . . . . . . . Critical Strikes 5 | . . . . . . . 5 Burn 1 | . . . . . . . 1 Blast 3 | . . . . . . . 3 Corrupt 1 | . . . . . . . 1 Melee Attacks . | . . . . . . . . Impact . | . . . . . . . . Slashing . | . . . . . . . . Piercing . | . . . . . . . . Sneak Attacks . | . . . . . . . . Combat Hostiles . | . . . . . . . . Follow-up Attacks . | . . . . . . . . Damage Inflicted 3561 | . 421 6 . 354 332 349 2099 Guns 2180 | . 421 . . 354 332 263 810 Cannons 958 | . . . . . . 79 879 Explosions 410 | . . . . . . . 410 Melee . | . . . . . . . . Ramming 13 | . . 6 . . . 7 . Kinetic 1596 | . 421 . . 354 195 146 480 Thermal 1388 | . . . . . 137 196 1055 Explosive . | . . . . . . . . Electromagnetic 564 | . . . . . . . 564 Impact . | . . . . . . . . Slashing . | . . . . . . . . Piercing . | . . . . . . . . Highest Corruption 4 | . . . . . . . 4 Average Corruption 3 | . . . . . . . 3 Corruption Purged . | . . . . . . . . Corruption Blocked . | . . . . . . . . Effects 1 | . . . . . . . 1 Matter Fused 1 | . . . . . . . 1 Overload Shots . | . . . . . . . . Overflow Damage 16 | . . . . . . . 16 Projectiles 11 | . . . . . . . 11 Explosions 5 | . . . . . . . 5 Melee . | . . . . . . . . Knockbacks 5 | . . . . . . . 5 Impact . | . . . . . . . . Kinetic 4 | . . . . . . . 4 Secondary 1 | . . . . . . . 1 Self-Inflicted Damage 86 | . . 3 . . . 3 80 Shots 2 | . . . . . . . 2 Rammed 3 | . . 1 . 1 . 1 . Targets Rammed 3 | . . 1 . 1 . 1 . Kicked . | . . . . . . . . Crushed . | . . . . . . . . Highest Temperature 1269 | . 15 . . 35 125 336 1269 Average Temperature 214 | . 8 . . 4 47 136 322 Received Heat Transfer 516 | . 141 . . 51 81 42 201 Effects 52 | . . . . . . 1 51 Shutdowns 18 | . . . . . . . 18 Energy Bleed 3 | . . . . . . 1 2 Interference 7 | . . . . . . . 7 Matter Decay 1 | . . . . . . . 1 Short Circuit 3 | . . . . . . . 3 Damage (minor) 5 | . . . . . . . 5 Damage (major) 10 | . . . . . . . 10 Damage (core) 5 | . . . . . . . 5 Siege Activations . | . . . . . . . . Robots Corrupted . | . . . . . . . . Combat Hostiles . | . . . . . . . . Parts Fried 4 | . . . . . . . 4 Impact Corruptions . | . . . . . . . . Robots Melted . | . . . . . . . . Combat Hostiles . | . . . . . . . . Parts Melted 3 | . . . . . 1 . 2 Heat Transferred 2311 | . . . . . 296 370 1645 Parts Sabotaged . | . . . . . . . . Parts Stolen . | . . . . . . . . Parts Stripped . | . . . . . . . . Power Chain Reactions 3 | . . . . . . . 3 Missiles Intercepted . | . . . . . . . . Alert | -11 -10 -10 -10 -9 -8 -7 -6 ------- Run | Scr Mat Min Exi Min Mat Fac Fac Peak Influence 210 | . 145 47 . 195 120 181 210 Initial 47 | . . 47 . . . 46 . Average 85 | . 99 47 . 56 54 142 106 Maximum Alert Level 1 | . . . . . . . 1 Low Security (%) 98 | 100 100 100 . 100 100 100 92 Level 1 1 | . . . . . . . 7 Level 2 . | . . . . . . . . Level 3 . | . . . . . . . . Level 4 . | . . . . . . . . Level 5 . | . . . . . . . . High Security . | . . . . . . . . Max Security . | . . . . . . . . Squads Dispatched . | . . . . . . . . Investigation . | . . . . . . . . Extermination . | . . . . . . . . Reinforcement . | . . . . . . . . Assault . | . . . . . . . . Garrison . | . . . . . . . . Intercept . | . . . . . . . . Searches Triggered . | . . . . . . . . Construction Impeded . | . . . . . . . . Haulers Reinforced . | . . . . . . . . Active Scanning Responses . | . . . . . . . . Cargo Convoy Interrupts . | . . . . . . . . Stealth | -11 -10 -10 -10 -9 -8 -7 -6 --------- Run | Scr Mat Min Exi Min Mat Fac Fac Distress Signals . | . . . . . . . . Communications Jammed . | . . . . . . . . Distress Signals . | . . . . . . . . Times Spotted 42 | . 7 . . 10 6 5 14 Peak Tracking Total 6 | . 3 . . 4 6 3 3 Tactical Retreats 4 | . 1 . . 1 2 . . Traps | -11 -10 -10 -10 -9 -8 -7 -6 ------- Run | Scr Mat Min Exi Min Mat Fac Fac Traps Triggered 3 | . . . . . . . 3 Indirectly . | . . . . . . . . Trap Hack Attempts . | . . . . . . . . Triggered . | . . . . . . . . Disarmed . | . . . . . . . . Reprogrammed . | . . . . . . . . Reused . | . . . . . . . . Traps Extracted . | . . . . . . . . Installed . | . . . . . . . . Triggered . | . . . . . . . . Machines | -11 -10 -10 -10 -9 -8 -7 -6 ---------- Run | Scr Mat Min Exi Min Mat Fac Fac Machines Disabled 3 | . . . . . . . 3 Max in Single Turn 1 | . . . . . . . 1 Garrison Access 1 | . . . . . . . 1 Machines Sabotaged . | . . . . . . . . Garrisons Compromised . | . . . . . . . . Overloaded Fab Kills . | . . . . . . . . Hacking | -11 -10 -10 -10 -9 -8 -7 -6 --------- Run | Scr Mat Min Exi Min Mat Fac Fac Machines Accessed 2 | . . . 1 . . . 1 Terminals . | . . . . . . . . Fabricators . | . . . . . . . . Repair Stations . | . . . . . . . . Recycling Units . | . . . . . . . . Scanalyzers . | . . . . . . . . Garrison Access 1 | . . . . . . . 1 Total Hacks 6 | . . . 5 . . . 1 Successful 6 | . . . 5 . . . 1 Failed . | . . . . . . . . Catastrophic . | . . . . . . . . Database Lockouts . | . . . . . . . . Manual . | . . . . . . . . Terminals . | . . . . . . . . Fabricators . | . . . . . . . . Repair Stations . | . . . . . . . . Recycling Units . | . . . . . . . . Scanalyzers . | . . . . . . . . Garrison Access 1 | . . . . . . . 1 Terminal Hacks 5 | . . . 5 . . . . Record 5 | . . . 5 . . . . Fabricator Hacks . | . . . . . . . . Repair Station Hacks . | . . . . . . . . Recycling Unit Hacks . | . . . . . . . . Scanalyzer . | . . . . . . . . Garrison Access Hacks 1 | . . . . . . . 1 Seal Access 1 | . . . . . . . 1 Unauthorized Hacks . | . . . . . . . . Terminals . | . . . . . . . . Fabricators . | . . . . . . . . Repair Stations . | . . . . . . . . Recycling Units . | . . . . . . . . Scanalyzers . | . . . . . . . . Garrison Access . | . . . . . . . . Data Cores Recovered 1 | . . . . . . . 1 Used . | . . . . . . . . Hacking Detections . | . . . . . . . . Full Trace Events . | . . . . . . . . Feedback Events . | . . . . . . . . Feedback Blocked . | . . . . . . . . Robot Schematics Acquired . | . . . . . . . . Robots Built . | . . . . . . . . Authchips . | . . . . . . . . Time . | . . . . . . . . Total Robot Build Rating . | . . . . . . . . Part Schematics Acquired . | . . . . . . . . Parts Built . | . . . . . . . . Authchips . | . . . . . . . . Time . | . . . . . . . . Total Part Build Rating . | . . . . . . . . Parts Repaired . | . . . . . . . . Time . | . . . . . . . . Parts Recycled . | . . . . . . . . Recycled Matter . | . . . . . . . . Retrieved Matter . | . . . . . . . . Retrieved Components . | . . . . . . . . Parts Scanalyzed . | . . . . . . . . Part Schematics Acquired . | . . . . . . . . Parts Damaged . | . . . . . . . . Bothacking | -11 -10 -10 -10 -9 -8 -7 -6 ------------ Run | Scr Mat Min Exi Min Mat Fac Fac Used RIF Installer . | . . . . . . . . Robots Hacked . | . . . . . . . . Non-combat . | . . . . . . . . Combat . | . . . . . . . . Robot Hacks Applied . | . . . . . . . . Relay Couplers Released . | . . . . . . . . Fabnet Peak Effective % . | . . . . . . . . Robots Rewired . | . . . . . . . . Allies Hacked . | . . . . . . . . Hacks Repelled . | . . . . . . . . Allies | -11 -10 -10 -10 -9 -8 -7 -6 -------- Run | Scr Mat Min Exi Min Mat Fac Fac Total Allies 1 | . . . . 1 . . . Largest Group 1 | . . . . 1 . . . Highest-Rated Group 31 | . . . . 31 . . . Highest-Rated Ally 31 | . . . . 31 . . . Total Orders . | . . . . . . . . Ally Attacks 6 | . . . . 6 . . . Total Damage 107 | . . . . 107 . . . Kills 1 | . . . . 1 . . . Allies Corrupted . | . . . . . . . . Allies Melted . | . . . . . . . . Intel | -11 -10 -10 -10 -9 -8 -7 -6 ------- Run | Scr Mat Min Exi Min Mat Fac Fac Robot Analysis Total . | . . . . . . . . Derelict Logs Recovered 3 | . . 1 . 2 . . . Drone Launches . | . . . . . . . . Drone Recoveries . | . . . . . . . . Exploration | -11 -10 -10 -10 -9 -8 -7 -6 ------------- Run | Scr Mat Min Exi Min Mat Fac Fac Turns Passed 2810 | 56 272 75 577 833 166 415 416 Spaces Moved 2242 | 50 199 69 545 693 108 357 221 Core 8 | 8 . . . . . . . Treads . | . . . . . . . . Legs 1 | . . . . . . . 1 Wheels 2233 | 42 199 69 545 693 108 357 220 Hover . | . . . . . . . . Flight . | . . . . . . . . Fastest Speed 50 | 50 90 90 105 105 101 101 100 Average Speed 104 | 83 90 103 105 105 101 101 124 Slowest Speed 820 | 90 95 105 105 105 101 116 820 Overloaded Moves . | . . . . . . . . Propulsion Burnouts . | . . . . . . . . Robots Hopped . | . . . . . . . . Cave-ins Triggered . | . . . . . . . . Exploration Rate (%) 35 | 4 33 27 90 99 13 10 10 Regions Visited 7 Branch Regions 3 Pre-discovered Areas 1 | . . 1 . . . . . Known Exits Taken . | . . . . . . . . Unknown Exits Taken 7 | 1 1 1 1 1 1 1 . Scrap Searched 3 | . . 1 . 2 . . . Spaces Dug . | . . . . . . . . Terrain Destroyed 7 | . . . . . . . 7 Melee . | . . . . . . . . Projectile 2 | . . . . . . . 2 AOE 5 | . . . . . . . 5 Terrain Rammed . | . . . . . . . . Walls Destroyed . | . . . . . . . . Machines Disabled . | . . . . . . . . Actions | -11 -10 -10 -10 -9 -8 -7 -6 --------- Run | Scr Mat Min Exi Min Mat Fac Fac Total 2545 | 64 245 72 549 769 141 390 315 Wait 109 | . 11 . . 54 13 . 31 Move 2235 | 49 198 68 544 692 107 356 221 Hop . | . . . . . . . . Pick Up 43 | 10 6 1 2 2 4 12 6 Fast Attach . | . . . . . . . . Attach 33 | 5 3 . . . 6 4 15 Detach . | . . . . . . . . Swap 14 | . 1 1 2 2 . 6 2 Drop 11 | . 1 1 1 2 . 4 2 Fire 81 | . 25 . . 16 11 7 22 Melee . | . . . . . . . . Ram 3 | . . 1 . 1 . 1 . Kick . | . . . . . . . . Crush . | . . . . . . . . Escape Stasis 16 | . . . . . . . 16 Rewire . | . . . . . . . . Trap . | . . . . . . . . Miscellaneous . | . . . . . . . . Route ------- -11/Scrapyard -10/Materials -10/Mines (discovered 2 exits: [*Mat] / *Exi) -10/Exiles (discovered 2 exits: *Min x2) -9/Mines (discovered 2 exits: [*Mat x2]) -8/Materials -7/Factory -6/Factory History --------- Turn | Location | Event 28 | -11/Scrapyard | Discovered new exit (range 15) 57 | -11/Scrapyard | Entered Materials 249 | -10/Materials | Discovered new exit (range 9) 318 | -10/Materials | Build established: Mutant 329 | -10/Materials | Entered Mines 333 | -10/Mines | Learned location of Zion (-7) 347 | -10/Mines | Met a Derelict bent on vengeance 378 | -10/Mines | Discovered new exit (range 8) 400 | -10/Mines | Deemed a non-threat by the Exiles lab entrance 400 | -10/Mines | Discovered new exit (range 5) 404 | -10/Mines | Entered Exiles 420 | -10/Exiles | Discovered new exit (range 15) 436 | -10/Exiles | Met 8R-AWN 453 | -10/Exiles | Met EX-HEX 516 | -10/Exiles | Met EX-DEC 534 | -10/Exiles | Visited The Gauntlet 724 | -10/Exiles | Discovered new exit (range 14) 803 | -10/Exiles | Met EX-BIN 981 | -10/Exiles | Entered Mines 1050 | -9/Mines | Discovered new exit (range 16) 1090 | -9/Mines | A weapon hastily lodged in a ceiling crevice suddenly fell to the ground 1093 | -9/Mines | Learned Materials emergency access door positions 1146 | -9/Mines | Found a hidden stash of uninstalled traps 1332 | -9/Mines | Received a Rocket Launcher from a helpful Derelict 1335 | -9/Mines | Learned Materials terminal intel 1353 | -9/Mines | Discovered new exit (range 13) 1393 | -9/Mines | Received a Mining Laser from a helpful Derelict 1814 | -9/Mines | Entered Materials 1814 | -8/Materials | Evolved 4 slots: Power x1, Propulsion x1, Utility x1, Weapon x1 1816 | -8/Materials | Loaded intel: 12 terminal locations 1967 | -8/Materials | Discovered new exit (range 13) 1980 | -8/Materials | Entered Factory 1980 | -7/Factory | Evolved 2 slots: Utility x1, Weapon x1 2201 | -7/Factory | Build established: Gunner 2386 | -7/Factory | Discovered new exit (range 5) 2395 | -7/Factory | Entered another Factory area 2395 | -6/Factory | Evolved 2 slots: Power x1, Weapon x1 2642 | -6/Factory | Core integrity fell below 50% 2672 | -6/Factory | Lost 4 parts (1p2n1w) 2757 | -6/Factory | Lost 6 parts (2p1u3w) 2765 | -6/Factory | Spotted B-75 Beast 2771 | -6/Factory | Core integrity fell below 20% 2809 | -6/Factory | Lost 9 parts (1p1n2u5w) 2811 | -6/Factory | Destroyed by P-60 Hacker via exploding Nuclear Reactor Last Messages --------------- 02770_ U-05 Engineer destroyed. 02770_ Assault Rifle destroyed. 02770_ Nuclear Reactor explodes. 02770_ Com. Wheel destroyed. 02770_ Hvy. Ion Cannon destroyed. 02770_ Assault Rifle destroyed. 02770_ Gauss Cannon destroyed. 02770_ Rnf. Deuterium Engine destroyed. 02770_ Terminal disabled. 02772_ Nuclear Reactor explodes. 02772_ Fusion Modulator explodes. 02772_ Matter Pump disabled. 02772_ Nuclear Reactor explodes. 02772_ U-05 Engineer destroyed. 02772_ R-10 Processor destroyed. 02772_ U-05 Engineer destroyed. 02772_ W-25 Informer destroyed. 02778_ Hcp. Storage Unit destroyed. 02780_ The unstable cave ceiling collapses. 02811_ Nuclear Reactor explodes. Map ----- +----------------------------------------------------+ | ????????????????????? + # # """ | | ?????????????????????? ?? # ######### | | ???????????????????######### ######### | | ????????????????? % !! | | ????????????????? ! | | ????????????????? % % % *! | | ?????????????????? % %[%= | | ?????????????????? % %%% ! *%" | | ???????????????????######## T###### " | | ??????????????????????????###????## " | | ?????????????????????????????????# | | ?????????????????????????????????# | | ?????????????????????????????????# | | ?????????????????????????????????# | | ?????????????????????????????????# | | ?????????????????????????????????# | | ?????????????????????????????????# | | ?????????????????????????????????# | | ?????????????????????????????????##" | | ?????????????????????????????????# T | | ????????????????????????########## | | ????????????????????????# % | | ????????????????????????# p # | | ????????????????????????# #% | | ????????????????????????# #!! | | ????????????????????????#@ + """"""""# | | ????????????????????????# # # ### | | ????????????????????????# # #######??? | | ????????????????????????# + #????????? | | ????????????????????????# #####+###????????? | | ?????????????????????????????????????????????????? | | ?????????????????????????????????????????????????? | | ?????????????????????????????????????????????????? | | ?????????????????????????????????????????????????? | | ?????????????????????????????????????????????????? | | ?????????????????????????????????????????????????? | | ?????????????????????????????????????????????????? | | ?????????????????????????????????????????????????? | | ?????????????????????????????????????????????????? | | ?????????????????????????????????????????????????? | | ?????????????????????????????????????????????????? | | ?????????????????????????????????????????????????? | | ?????????????????????????????????????????????????? | | ?????????????????????????????????????????????????? | | ?????????????????????????????????????????????????? | | ?????????????????????????????????????????????????? | | ?????????????????????????????????????????????????? | | ?????????????????????????????????????????????????? | | ?????????????????????????????????????????????????? | | ?????????????????????????????????????????????????? | +----------------------------------------------------+ Best States ------------- Heat Dissipation 37 Energy Generation 31 Energy Capacity 490 Matter Stores 300 Matter Capacity 300 Sight Range 16 Terrain Scan Density 10 EM Shielding 2 Resistance: KI 20 Resistance: TH 20 Resistance: EX 20 Resistance: EM 20 Resistance: I 20 Resistance: S 20 Resistance: P 20 Propulsion Shielding 66 Weapon Cycling 15 Evasion (%) 50 Targeting Accuracy 5 Offensive Hacking 10 Item Schematics ----------------- None Robot Schematics ------------------ None Fabricated ------------ Nothing Alien Tech Used ----------------- None Achievements -------------- None Challenges ------------ None Game ------ Seed CoordinationCombatBoosters Manual? 0 Play Time 00:22:58 Cumulative 17.2 hours Start 2023.02.06 @ 18:33:00 End 2023.02.06 @ 18:54:58 Sessions 1 Manual Loads 0 Difficulty Adventurer Special Mode None Game No. 37 Rogue 9 Adventurer 28 Explorer 0 Win Type - Total 0 Types 0/0/0/0/0/0/0/0/0 Lore% 20 Gallery% 24 Achievement% 17 Wizard Run 0 Options --------- ASCII 0 Keyboard 0 Movement Mouse Keybinds 0 Fullscreen 1 Font 12/Terminus Map View 83x54 Tactical HUD 1 Map Filters NONE Filters NONE Steam 0 RUN: 1aa8dff5-7b99-4bc3-b144-0cc8bec74d50